fUST/lending_fUST_20240108
["ID","MTS","AMOUNT","RATE_DAILY","PERIOD"]
[310741665,1704695440261,-2004.72035853,0.00035,2]
[310741667,1704695440271,-590.99098966,0.00035,2]
[310741669,1704695440279,-53798.95270535,0.00035,45]
[310741807,1704695441539,-3191.01357112,0.00035,45]
[310741809,1704695441552,-2065.48508056,0.00035,45]
[310741815,1704695441600,-1524.78494706,0.00035,45]
[310741961,1704695444282,-43072.05473979,0.00035,45]
[310742125,1704696632519,-260.1996768,0.00026398,2]
[310742127,1704696632528,-154.84515485,0.00026399,2]
[310742129,1704696632537,-161.14649141,0.00026415,2]
[310742131,1704696632547,-268.8999641,0.00026622,2]
[310742133,1704696632556,-166.666666,0.00030072,2]
[310742135,1704696632565,-176.89069433,0.00030773,2]
[310742137,1704696632576,-133.42453767,0.00030773,2]
[310742139,1704696632586,-717.98160927,0.000308,2]
[310742141,1704696632595,-181.8541412,0.0003133,2]
[310742143,1704696632603,-3342.31611423,0.00031947,2]
[310742145,1704696632614,-1807.41648463,0.00031947,2]
[310742226,1704696638958,-2704.30746641,0.00031947,2]
[310742242,1704696639106,-2814.30276952,0.00031947,2]
[310742244,1704696639115,-2094.59195026,0.00031948,4]
[310742246,1704696639124,-976.73224448,0.00031948,2]
[310742248,1704696639134,-166.666666,0.00032122,2]
[310742250,1704696639144,-624.89908046,0.0003234,2]
[310742253,1704696639153,-281.78382395,0.0003282,2]
[310742254,1704696639162,-153.65852064,0.000329,2]
[310742256,1704696639172,-289.0,0.00033366,2]
[310742259,1704696639181,-19271.05729821,0.00033366,4]
[310742261,1704696639191,-620.24495402,0.00033957,2]
[310742263,1704696639200,-1000.0,0.00034,7]
[310742264,1704696639210,-166.666666,0.00034171,2]
[310742267,1704696639219,-4000.0,0.00034521,2]
[310742269,1704696639228,-150.83408251,0.00034546,2]
[310742271,1704696639239,-625.56867785,0.0003491,2]
[310742273,1704696639248,-228.21847082,0.00034999,4]
[310742275,1704696639258,-6243.43151934,0.00035,45]
[310742277,1704696639268,-282.45630741,0.00035,3]
[310742279,1704696639277,-409.60704958,0.00035,2]
[310742281,1704696639287,-2127.69791342,0.00035,4]
[310742283,1704696639296,-3014.62733228,0.00035,4]
[310742285,1704696639306,-298.38059283,0.00035,2]
[310742287,1704696639316,-2000.0,0.00035,2]
[310742288,1704696639326,-2000.0,0.00035,2]
[310742289,1704696639336,-3543.17087496,0.00035,2]
[310742290,1704696639345,-151.8519486,0.00035002,14]
[310742291,1704696639354,-2000.0,0.0003501,2]
[310742292,1704696639365,-2000.0,0.0003501,2]
[310742293,1704696639376,-625.56867782,0.00035011,2]
[310742294,1704696639386,-1399.83,0.0003502,3]
[310742295,1704696639395,-1166.52,0.0003502,3]
[310742296,1704696639404,-2000.0,0.0003502,2]
[310742297,1704696639413,-2000.0,0.0003502,2]
[310742298,1704696639422,-2000.0,0.0003503,2]
[310742299,1704696639431,-2000.0,0.0003503,2]
[310742300,1704696639442,-1679.79,0.0003503,3]
[310742302,1704696639452,-972.1,0.0003503,3]
[310742303,1704696639460,-2000.0,0.0003504,2]
[310742305,1704696639470,-2000.0,0.0003504,2]
[310742307,1704696639479,-2000.0,0.0003505,2]
[310742309,1704696639488,-2000.0,0.0003505,2]
[310742311,1704696639497,-2000.0,0.0003506,2]
[310742313,1704696639506,-1379.08305545,0.0003506,2]
[310742315,1704696639519,-620.91694455,0.0003506,2]
[310742317,1704696639528,-2000.0,0.0003507,2]
[310742319,1704696639538,-1985.87072237,0.0003507,2]
[310742744,1704696643569,-14.12927763,0.0003507,2]
[310742746,1704696643579,-793.30520645,0.0003508,2]
[310742753,1704696643635,-1206.69479355,0.0003508,2]
[310742756,1704696643644,-200.9550424,0.0003508,2]
[310743061,1704696646566,-1799.0449576,0.0003508,2]
[310743063,1704696646575,-554.7252565,0.0003509,2]
[310743071,1704696646636,-1008.92155887,0.0003509,2]
[310743073,1704696646647,-436.35318463,0.0003509,2]
[310743075,1704696646656,-877.01910585,0.0003509,2]
[310747201,1704696871218,-508.79855076,0.00023997,2]
[310747202,1704696871243,-1998.20144924,0.00023998,2]
[310747206,1704697322339,-1239.33609761,0.00023996,2]
[310747207,1704697322360,-1735.66390239,0.00023997,2]
[310747332,1704697832678,-1239.33609761,0.00023996,2]
[310747334,1704697832688,-204.80536754,0.00023997,2]
[310747340,1704697832735,-467.09929999,0.00023997,2]
[310748247,1704697845219,-1213.61555179,0.00023997,2]
[310748248,1704697845234,-442.57629407,0.00023998,2]
[310748249,1704697845244,-245.95030176,0.00029941,2]
[310748250,1704697845253,-7552.78653652,0.00031781,4]
[310748251,1704697845261,-161.14649141,0.0003277,2]
[310748252,1704697845270,-150.0,0.0003297,2]
[310748253,1704697845279,-174.741013,0.00033024,2]
[310748254,1704697845288,-310.315232,0.0003318,2]
[310748255,1704697845297,-1000.0,0.00034,7]
[310748256,1704697845305,-4000.0,0.00034521,2]
[310748257,1704697845314,-205.99111081,0.0003499,2]
[310748258,1704697845324,-1524.78494706,0.00035,45]
[310748260,1704697845333,-2000.0,0.00035,2]
[310748261,1704697845342,-3543.17087496,0.00035,2]
[310748263,1704697845351,-2000.0,0.0003501,2]
[310748265,1704697845361,-2000.0,0.0003502,2]
[310748267,1704697845370,-2000.0,0.0003503,2]
[310748270,1704697845379,-2000.0,0.0003504,2]
[310748272,1704697845388,-375.3412067,0.00035049,2]
[310748273,1704697845397,-2000.0,0.0003505,2]
[310748275,1704697845407,-151.8519486,0.00035058,14]
[310748278,1704697845417,-2000.0,0.0003506,2]
[310748280,1704697845426,-2000.0,0.0003507,2]
[310748281,1704697845435,-2000.0,0.0003508,2]
[310748283,1704697845446,-6605.91777556,0.00035089,4]
[310748285,1704697845456,-409.60704958,0.0003509,2]
[310748288,1704697845465,-362.17787801,0.0003509,3]
[310748289,1704697845474,-2000.0,0.0003509,2]
[310748291,1704697845484,-2000.0,0.000351,2]
[310748293,1704697845495,-2000.0,0.0003511,2]
[310748295,1704697845504,-2000.0,0.0003512,2]
[310748297,1704697845513,-2000.0,0.0003513,2]
[310748299,1704697845523,-375.34120669,0.00035136,2]
[310748301,1704697845532,-2000.0,0.0003514,2]
[310748303,1704697845541,-2000.0,0.0003515,3]
[310748305,1704697845550,-3582.927608,0.0003516,3]
[310748307,1704697845559,-155.0,0.00035164,2]
[310748309,1704697845568,-261.04378837,0.00035188,4]
[310748311,1704697845577,-204.50668989,0.00035189,4]
[310748313,1704697845586,-375.34120669,0.00035224,2]
[310748315,1704697845595,-542.37895057,0.000353,7]
[310748317,1704697845604,-810.09,0.00035302,3]
[310748319,1704697845614,-375.34120669,0.00035311,2]
[310748321,1704697845623,-4213.3530685,0.00035311,7]
[310748323,1704697845633,-322.26268464,0.00035312,4]
[310748325,1704697845642,-154.84515485,0.00035312,4]
[310748327,1704697845652,-361.73041495,0.00035312,4]
[310748329,1704697845661,-872.16543446,0.00035312,4]
[310748331,1704697845671,-1735.74473674,0.00035312,4]
[310748333,1704697845680,-1241.19021588,0.00035312,4]
[310748335,1704697845689,-178.64,0.00035313,2]
[310748338,1704697845699,-156.66111148,0.00035313,2]
[310748489,1704697846815,-343.33888852,0.00035313,2]
[310748491,1704697846825,-171.17610016,0.00035313,2]
[310748493,1704697846835,-510.7458722,0.00035313,2]
[310748495,1704697846844,-209.09063448,0.00035313,2]
[310748497,1704697846856,-220.03968342,0.00035313,2]
[310748499,1704697846865,-10570.61052766,0.00035314,2]
[310750587,1704699042552,-380.0,0.00028,2]
[310750590,1704699042561,-175.0,0.00033,2]
[310750593,1704699042571,-150.0,0.00033214,2]
[310750596,1704699042580,-187.67060335,0.000339,2]
[310750598,1704699042590,-172.99502236,0.000339,6]
[310750600,1704699042599,-187.36773579,0.0003399,3]
[310750606,1704699042611,-487.70226421,0.0003399,3]
[310750609,1704699042620,-630.73410668,0.00033998,2]
[310750613,1704699042630,-163.435,0.00034,3]
[310750617,1704699042639,-7519.52862911,0.00034,7]
[310750655,1704700054239,-20235.28397085,0.00032,5]
[310750697,1704700232121,-1081.0586061,0.000319,2]
[310750699,1704700232131,-752.70795397,0.00031999,4]
[310750701,1704700232140,-360.28343993,0.00032,5]
[310750704,1704700232152,-479.71329689,0.00032,5]
[310750706,1704700232163,-8924.71929233,0.00032,5]
[310750707,1704700232173,-24900.0,0.00032652,2]
[310750708,1704700232182,-268.325847,0.00032826,2]
[310750709,1704700232191,-2168.39276673,0.00032898,4]
[310750710,1704700232201,-175.0,0.00033,2]
[310750711,1704700232211,-187.67060334,0.000339,2]
[310750712,1704700232220,-562.56,0.0003399,3]
[310750713,1704700232230,-309.05059789,0.00033998,2]
[310750714,1704700232239,-154.94451709,0.00033998,4]
[310750715,1704700232249,-951.65352946,0.00033998,4]
[310750716,1704700232259,-871.79394782,0.00033998,4]
[310750717,1704700232269,-479.71329689,0.00033999,4]
[310750718,1704700232279,-78299.42719587,0.00034,7]
[310750719,1704700232289,-1000.0,0.00034,7]
[310750720,1704700232299,-22120.27715517,0.00034,14]
[310750721,1704700232309,-1321.80054486,0.00034,4]
[310750722,1704700232319,-155.0,0.00034114,2]
[310750723,1704700232329,-540.02976257,0.00034213,2]
[310750724,1704700232340,-357.52211053,0.00034213,2]
[310750725,1704700232350,-216.01190502,0.00034213,2]
[310750726,1704700232359,-4000.0,0.00034521,2]
[310750727,1704700232370,-175.0,0.00034521,2]
[310750728,1704700232379,-1000.0,0.00035,35]
[310750729,1704700232389,-150.0,0.00035,2]
[310750730,1704700232399,-28610.92821892,0.00035114,2]
[310750732,1704700238465,-324.01785754,0.00033999,2]
[310750733,1704700238475,-153.22376166,0.00033999,2]
[310750734,1704700238485,-468.8,0.00035104,3]
[310750735,1704700238494,-500.0,0.00035113,4]
[310750737,1704700238503,-455.38357148,0.00035113,4]
[310750738,1704700238513,-404.77083539,0.00035113,4]
[310750739,1704700238522,-500.0,0.00035113,4]
[310750740,1704700238532,-160.2480735,0.00035113,4]
[310750741,1704700238540,-247.06875466,0.00035113,4]
[310750742,1704700238550,-471.45526758,0.00035113,4]
[310750743,1704700238559,-13075.91192222,0.00035114,2]
[310750751,1704700241265,-44182.91597143,0.00035114,2]
[310750781,1704700243159,-295.0960144,0.00033998,4]
[310750782,1704700243169,-1391.60336279,0.00035114,2]
[310750942,1704701432234,-725.68741447,0.00032722,4]
[310751025,1704701438538,-658.38227285,0.00032722,4]
[310751027,1704701438548,-683.60649815,0.00032723,4]
[310751029,1704701438557,-699.6509796,0.00032723,4]
[310751031,1704701438566,-131.67937038,0.00033083,2]
[310751065,1704701441607,-45.39472562,0.00033083,2]
[310751066,1704701441617,-3297.75608323,0.00033207,2]
[310751103,1704701443630,-5170.40196567,0.00033207,2]
[310751132,1704702297876,6391.20082287,0.0003,120]
[310751133,1704702445108,-177.0,0.00033,2]
[310751134,1704702445129,-9431.63624703,0.00033206,4]
[310751180,1704702632438,-329.73104866,0.00033206,4]
[310751226,1704702638631,-1738.93771186,0.00033206,4]
[310751242,1704702638812,-457.70571008,0.00033206,4]
[310751244,1704702638822,-172.78272959,0.00033206,4]
[310751263,1704702641654,-5850.78211006,0.00033206,4]
[310751264,1704702641666,-461.4873062,0.00033206,4]
[310751265,1704702641676,-303.845603,0.00033461,2]
[310751266,1704702641685,-4386.10788859,0.00033523,2]
[310751320,1704702643673,-361.048888,0.00033523,2]
[310751321,1704702643684,-271.19691265,0.00033523,2]
[310751763,1704703835677,-218.57421898,0.00032999,4]
[310751764,1704703835687,-3772.44275635,0.00032999,4]
[310751766,1704703835696,-179.47884018,0.00033,5]
[310751874,1704703846687,-1400.31614103,0.00033,5]
[310751875,1704703846696,-786.5989779,0.00033069,2]
[310751896,1704703942669,-245.72874804,0.00027508,2]
[310751897,1704703942692,-613.7235784,0.00027509,2]
[310751898,1704703942714,-586.81733784,0.00027509,2]
[310751899,1704703942736,-15873.6712433,0.0002751,2]
[310751900,1704703942761,-7357.05909242,0.00027511,2]
[310751915,1704704786168,-15873.6712433,0.00027473,2]
[310751916,1704704786188,-154.82968734,0.00027473,2]
[310751917,1704704786208,-154.82968734,0.00027473,2]
[310751918,1704704786230,-154.82968734,0.00027473,2]
[310751919,1704704786251,-343.85410073,0.00027473,2]
[310751920,1704704786272,-154.82968734,0.00027473,2]
[310751921,1704704786295,-360.56828888,0.00027473,2]
[310751922,1704704786316,-154.82968734,0.00027473,2]
[310751923,1704704786339,-325.55,0.00027474,3]
[310751924,1704704786359,-5000.0,0.00027478,5]
[310751925,1704704786395,-261.65970793,0.00027479,2]
[310751926,1704704786417,-1586.54763631,0.00027479,2]
[310751927,1704704786439,-3736.32709612,0.00027479,2]
[310751928,1704704786461,-451.57405458,0.0002748,2]
[310751929,1704704786483,-1577.96610455,0.0002748,2]
[310751930,1704704786505,-154.82968734,0.0002748,2]
[310751931,1704704786527,-1212.41206683,0.0002748,2]
[310751932,1704704786552,-586.81733784,0.0002748,2]
[310751933,1704704786573,-2507.77928787,0.0002748,2]
[310751934,1704704786593,-1575.24028985,0.0002748,2]
[310751935,1704704786615,-3476.43711676,0.0002748,2]
[310751936,1704704786635,-2634.26674675,0.00027481,2]
[310751937,1704704786658,-901.30981836,0.00027481,2]
[310751938,1704704786680,-560.22977717,0.00027481,2]
[310751939,1704704786701,-154.82968734,0.00027481,2]
[310751940,1704704786721,-294.29289612,0.00027481,2]
[310751941,1704704786742,-245.72874804,0.00027481,2]
[310751942,1704704786763,-154.82968734,0.00027481,2]
[310751943,1704704786789,-520.7402291,0.00027481,2]
[310751944,1704704786812,-154.82968734,0.00027482,2]
[310751945,1704704786837,-154.82968734,0.00027482,2]
[310751946,1704704786858,-301.18213313,0.00027482,2]
[310751947,1704704786879,-508.79855076,0.00027482,2]
[310751948,1704704786899,-230.38355805,0.00027482,2]
[310751949,1704704786921,-309.65937468,0.00027482,2]
[310751950,1704704786941,-166.53442625,0.00027483,2]
[310751951,1704704786962,-872.16543446,0.00027483,2]
[310751952,1704704786982,-162.6816687,0.00027483,2]
[310751953,1704704787003,-20852.50703053,0.00027483,2]
[310751954,1704704787024,-245.94314602,0.00027484,2]
[310751955,1704704787046,-264.75182318,0.00027484,2]
[310751956,1704704787066,-2033.84368768,0.00027484,2]
[310751957,1704704787087,-6772.27974607,0.00027484,2]
[310751958,1704704854312,-946.54365024,0.00026655,2]
[310751959,1704704854334,-553.89631554,0.00026655,2]
[310751960,1704704854357,-154.82968734,0.00026655,2]
[310751961,1704704854378,-860.46618422,0.00026655,2]
[310751962,1704704854400,-525.41351867,0.00026655,2]
[310751963,1704704854423,-2507.77928787,0.00026655,2]
[310751964,1704704854444,-1172.14414578,0.00026655,2]
[310751965,1704704854465,-164.84804974,0.00026656,2]
[310751966,1704704854486,-154.82968734,0.00026656,2]
[310751967,1704704854507,-7861.30134799,0.00026656,2]
[310751968,1704704854530,-289.97202126,0.00026656,2]
[310751969,1704704854551,-642.65877806,0.00026657,2]
[310751970,1704704854573,-2807.77525151,0.00026657,2]
[310751971,1704704854599,-5000.0,0.00026658,5]
[310751972,1704704854621,-1797.21914814,0.00026932,2]
[310751973,1704704854643,-155.37864254,0.00027345,2]
[310751974,1704704854798,-336.41,0.00027461,3]
[310751975,1704704854818,-1290.44709012,0.0002747,2]
[310751976,1704704854841,-2029.06228573,0.0002747,2]
[310751977,1704704854863,-49051.02490791,0.00027471,2]
[310751978,1704704919837,-872.16543446,0.00025945,2]
[310751979,1704704919859,-154.82968734,0.00025945,2]
[310751980,1704704919880,-212.86429376,0.00025945,2]
[310751981,1704704919903,-166.53442625,0.00025945,2]
[310751982,1704704919924,-1586.54763631,0.00025945,2]
[310751983,1704704919944,-245.72874804,0.00025945,2]
[310751984,1704704919966,-245.94314602,0.00025946,2]
[310751985,1704704919986,-154.82968734,0.00025946,2]
[310751986,1704704920019,-294.29289612,0.00025946,2]
[310751987,1704704920041,-2033.84368768,0.00025946,2]
[310751988,1704704920064,-1212.41206683,0.00025947,2]
[310751989,1704704920085,-154.82968734,0.00025947,2]
[310751990,1704704920107,-560.22977717,0.00025948,2]
[310751991,1704704920129,-360.56828888,0.00025948,2]
[310751992,1704704920152,-230.38355805,0.00025948,2]
[310751993,1704704920174,-162.6816687,0.00025948,2]
[310751994,1704704920196,-154.82968734,0.00025948,2]
[310751995,1704704920218,-175.726735,0.00025949,2]
[310751996,1704704920240,-3045.75888737,0.00026645,5]
[310751997,1704704948107,-280.34,0.00025936,3]
[310751998,1704704948128,-154.82968734,0.00025943,2]
[310751999,1704704948148,-860.46618422,0.00025943,2]
[310752000,1704704948169,-154.82968734,0.00025943,2]
[310752001,1704704948191,-301.18213313,0.00025944,2]
[310752002,1704704948211,-508.79855076,0.00025944,2]
[310752003,1704704948231,-154.82968734,0.00025944,2]
[310752004,1704704948250,-553.89631554,0.00025944,2]
[310752005,1704704948270,-162.6816687,0.00025945,2]
[310752006,1704704948290,-360.15739496,0.00025945,2]
[310752007,1704704948310,-212.4789719,0.00025945,2]
[310752008,1704704948330,-270.36636937,0.00025945,2]
[310752009,1704704948349,-219.32469727,0.00025945,2]
[310752010,1704704948368,-1212.41206683,0.00025945,2]
[310752011,1704704948388,-2069.48614315,0.00025945,2]
[310752012,1704704948407,-169.98214791,0.00025945,2]
[310752013,1704704948428,-1589.99891142,0.00025946,2]
[310752014,1704704948447,-245.12985913,0.00025946,2]
[310752015,1704704948467,-55810.04282747,0.00025946,2]
[310752029,1704705022956,99405.26324618,0.00025946,7]
[310752031,1704705031819,-154.82968734,0.00025942,2]
[310752032,1704705031828,-166.53442625,0.00025943,2]
[310752033,1704705031838,-294.29289612,0.00025943,2]
[310752034,1704705031847,-1578.49299029,0.00025944,2]
[310752035,1704705031859,-450.56929544,0.00025944,2]
[310752036,1704705031868,-1896.34070456,0.00025944,2]
[310752037,1704705031879,-137.50298312,0.00025944,2]
[310752038,1704705031888,-331.66121802,0.00025945,2]
[310752039,1704705031898,-300.81912071,0.00025945,2]
[310752040,1704705031907,-173.38120952,0.00025945,2]
[310752042,1704705031916,-606.88687843,0.00025945,2]
[310752044,1704705031925,-190.68798933,0.00025945,2]
[310752045,1704705031934,-333.11887357,0.00025945,2]
[310752046,1704705031942,-225.21897569,0.00025945,2]
[310752047,1704705031952,-219.97129686,0.00025945,2]
[310752048,1704705031961,-1114.56059502,0.00025945,2]
[310752049,1704705031970,-199.33028835,0.00025945,2]
[310752050,1704705031979,-155.07024426,0.00025946,2]
[310752051,1704705031988,-78327.93049688,0.00026053,2]
[310752052,1704705031997,-24900.0,0.00026054,2]
[310752053,1704705032006,-1287.17016169,0.00026645,5]
[310752054,1704705032015,-283.77055601,0.00027466,2]
[310752055,1704705032025,-409.56853084,0.00027466,2]
[310752056,1704705032034,-267.13029529,0.00027466,2]
[310752057,1704705032043,-156.22368096,0.00027466,2]
[310752058,1704705032053,-245.41911136,0.00027467,2]
[310752059,1704705032062,-229.84364964,0.00027467,2]
[310752060,1704705032073,-644.11484639,0.00027468,2]
[310752061,1704705032082,-526.64785982,0.00027469,2]
[310752062,1704705032091,-7855.55409713,0.00027469,2]
[310752064,1704705032101,-957.23109715,0.00027469,2]
[310752066,1704705032110,-943.23767818,0.00027469,2]
[310752068,1704705032119,-2309.75018729,0.00027469,2]
[310752071,1704705032139,-293.51861893,0.00027469,2]
[310752073,1704705032150,-309.65937468,0.00027469,2]
[310752075,1704705032160,-164.59209221,0.00027469,2]
[310752077,1704705032169,-1171.40352828,0.00027469,2]
[310752078,1704705032179,-1064.69704493,0.00027469,2]
[310752080,1704705032188,-151.0,0.00027482,2]
[310752082,1704705032200,-215.870557,0.00027482,2]
[310752084,1704705032209,-14025.30548226,0.00027482,2]
[310752086,1704705032218,-264.2093839,0.00027482,2]
[310752088,1704705032227,-451.20877036,0.00027482,2]
[310752090,1704705032238,-903.747269,0.00027482,2]
[310752092,1704705032247,-343.55899775,0.00027482,2]
[310752094,1704705032257,-588.3406227,0.00027482,2]
[310752114,1704705032436,-341.311794,0.00027483,2]
[310752116,1704705032446,-1575.57785129,0.00027483,2]
[310752118,1704705032455,-155.73462678,0.00027483,2]
[310752120,1704705032464,-2104.62444559,0.00027483,2]
[310752122,1704705032473,-2639.78647759,0.00027483,2]
[310752124,1704705032482,-3733.80040208,0.00027483,2]
[310752126,1704705032492,-1573.98427855,0.00027483,2]
[310752128,1704705032500,-211.37082976,0.00027483,2]
[310752130,1704705032509,-151.0,0.00027483,2]
[310752132,1704705032518,-740.42040522,0.00027485,2]
[310752134,1704705032527,-219.494976,0.00027511,2]
[310752136,1704705032537,-12686.22859507,0.00027511,2]
[310752138,1704705032546,-738.4369148,0.00027511,2]
[310752140,1704705032556,-200.0,0.00030227,15]
[310752141,1704705032565,-158.52513467,0.00032422,2]
[310752142,1704705032575,-280.0,0.0003325,15]
[310752144,1704705032584,-164.8317908,0.00033519,4]
[310752145,1704705032592,-6133.52859,0.00033519,4]
[310752146,1704705032602,-13681.29969267,0.0003352,4]
[310752148,1704705032611,-2707.29680151,0.0003352,120]
[310752150,1704705032620,-613.16790028,0.00033521,4]
[310752152,1704705032629,-250.21689281,0.00033521,4]
[310752154,1704705032638,-639.10837585,0.00033521,4]
[310752155,1704705032647,-154.88692911,0.00033521,4]
[310752157,1704705032657,-401.11765108,0.00033521,4]
[310752158,1704705032666,-154.98316271,0.00033521,4]
[310752160,1704705032677,-155.07340495,0.00033521,4]
[310752161,1704705032686,-155.29567123,0.00033521,4]
[310752162,1704705032695,-154.96324235,0.00033521,4]
[310752163,1704705032705,-322.57910218,0.00033521,4]
[310752164,1704705032715,-154.9107057,0.00033521,4]
[310752165,1704705032724,-155.20360814,0.00033521,4]
[310752166,1704705032733,-178.94006108,0.00033521,4]
[310752167,1704705032743,-155.04650737,0.00033521,4]
[310752168,1704705032753,-154.97262977,0.00033521,4]
[310752169,1704705032762,-3500.86037487,0.00033521,4]
[310752170,1704705032773,-2509.67018179,0.00033521,4]
[310752171,1704705032783,-198.66992878,0.00033521,4]
[310752172,1704705032792,-154.98795941,0.00033521,4]
[310752173,1704705032801,-606.18577739,0.00033521,4]
[310752174,1704705032810,-322.14948125,0.00033521,4]
[310752175,1704705032820,-155.10558043,0.00033521,4]
[310752176,1704705032829,-309.65937468,0.00033521,4]
[310752177,1704705032838,-1238.62873412,0.00033521,4]
[310752178,1704705032848,-261.57087789,0.00033521,4]
[310752179,1704705032857,-20815.22250008,0.00033521,4]
[310752180,1704705032866,-190.85270949,0.00033521,4]
[310752181,1704705032875,-155.02686625,0.00033521,4]
[310752182,1704705032886,-254.19777437,0.00033521,4]
[310752183,1704705032896,-271.72897209,0.00033521,4]
[310752184,1704705032907,-151.0,0.00033522,2]
[310752185,1704705032917,-431.75045719,0.00033522,2]
[310752186,1704705032926,-633.25137018,0.00033522,2]
[310752187,1704705032935,-182.24135686,0.00033522,2]
[310752188,1704705032944,-394.36500036,0.00033522,2]
[310752189,1704705032954,-171.17610016,0.00033522,2]
[310752190,1704705032963,-357.52211054,0.00033522,2]
[310752191,1704705032972,-209.09063448,0.00033522,2]
[310752192,1704705032981,-151.0,0.00033523,2]
[310752193,1704705032991,-23958.04828204,0.000337,2]
[310752194,1704705033000,-151.0,0.000337,2]
[310752195,1704705033008,-353.36197675,0.00033996,4]
[310752196,1704705033017,-1000.0,0.00034,7]
[310752197,1704705033026,-4000.0,0.00034521,2]
[310752198,1704705033035,-150.0,0.00035,2]
[310752199,1704705033044,-2005.317718,0.00035,5]
[310752200,1704705033053,-344.52854123,0.00035,4]
[310752201,1704705033063,-290.09823479,0.00035,4]
[310752202,1704705033072,-10000.0,0.00035,15]
[310752203,1704705033082,-5719.64228637,0.00035,2]
[310752204,1704705033091,-242.3851774,0.00035112,4]
[310752205,1704705033100,-455.38357149,0.00035195,4]
[310752206,1704705033109,-500.0,0.00035195,4]
[310752207,1704705033119,-560.301566,0.00035195,4]
[310752208,1704705033128,-173.47321517,0.00035195,4]
[310752209,1704705033137,-228.59145069,0.00035195,4]
[310752210,1704705033146,-185.03591022,0.00035195,7]
[310752211,1704705033155,-379.95082211,0.00035195,7]
[310752212,1704705033165,-169.01357158,0.00035195,7]
[310752213,1704705033174,-153.22376166,0.00035195,7]
[310752214,1704705033183,-289.27996921,0.00035196,3]
[310752215,1704705033193,-64557.00200714,0.00035196,2]
[310752255,1704705038119,-36811.04917865,0.00026052,2]
[310752256,1704705038128,-43176.00387698,0.00035196,2]
[310752257,1704705038140,-10384.10238435,0.00035196,2]
[310752258,1704705038153,-21963.88117853,0.00035196,2]
[310752259,1704705038165,-14199.52140093,0.00035196,2]
[310752260,1704705038184,-6055.16812123,0.00035196,2]
[310752278,1704705040929,-253.30054807,0.00026053,2]
[310752279,1704705040939,-510.01401548,0.0003352,4]
[310752280,1704705040950,-392.2110962,0.0003352,4]
[310752281,1704705040960,-233.62,0.00035186,3]
[310752282,1704705040969,-3728.27163359,0.00035196,2]
[310752283,1704705041008,-11439.48070249,0.00035196,2]
[310752284,1704705041019,-6759.42242454,0.00035196,2]
[310752285,1704705041031,-4456.68507004,0.00035196,2]
[310752294,1704705042874,-4000.0,0.00034521,2]
[310752295,1704705042884,-61202.88155313,0.00035196,2]
[310752316,1704705174308,-200.0,0.00025939,2]
[310752317,1704705174329,-676.65162341,0.00025939,2]
[310752318,1704705174349,-154.82968734,0.00025939,2]
[310752319,1704705174370,-1030.14329585,0.00025939,2]
[310752320,1704705174390,-154.82968734,0.0002594,2]
[310752321,1704705174410,-154.82968734,0.0002594,2]
[310752322,1704705174430,-964.1138573,0.00025941,2]
[310752323,1704705174450,-239.40343983,0.00025942,2]
[310752324,1704705174470,-155.13768068,0.00025946,2]
[310752325,1704705174490,-309.65937468,0.00025946,2]
[310752326,1704705174510,-117.40166623,0.00025946,2]
[310752330,1704705380390,-294.29289612,0.00025943,2]
[310752331,1704705380412,-2033.84368768,0.00025943,2]
[310752332,1704705380434,-166.53442625,0.00025944,2]
[310752333,1704705380455,-154.82968734,0.00025944,2]
[310752334,1704705380476,-199.49930261,0.00025945,2]
[310752335,1704705452927,-301.18213313,0.00025938,2]
[310752336,1704705452948,-162.6816687,0.00025939,2]
[310752337,1704705452969,-154.82968734,0.0002594,2]
[310752338,1704705452990,-508.79855076,0.0002594,2]
[310752339,1704705453010,-230.38355805,0.0002594,2]
[310752340,1704705453031,-46.44384341,0.00025945,2]
[310752341,1704705453113,231.68055861,0.00025937,2]
[310752342,1704705518656,-245.72874804,0.00025935,2]
[310752343,1704705518682,-520.7402291,0.00025935,2]
[310752344,1704705518707,-560.22977717,0.00025936,2]
[310752345,1704705518731,-23.30124569,0.00025937,2]
[310752357,1704705720713,-901.30981836,0.00025943,2]
[310752358,1704705720739,-245.72874804,0.00025943,2]
[310752359,1704705720765,-264.75182318,0.00025944,2]